bitfinex-derivatives/quotes_BTCF0:USTF0_20250924
["timestamp","ask_amount","ask_price","bid_price","bid_amount"]
[1758729802132,0.94168602,113380.0,113370.0,0.1015603]
[1758729802523,0.94168602,113380.0,113370.0,0.1240603]
[1758729802741,0.94168602,113380.0,113370.0,0.0134]
[1758729802940,0.94168602,113380.0,113370.0,0.1015603]
[1758729803334,0.94268602,113380.0,113370.0,0.1015603]
[1758729803734,0.94268602,113380.0,113370.0,0.0134]
[1758729804123,0.94268602,113380.0,113370.0,0.1015602]
[1758729804436,0.94268602,113380.0,113370.0,0.1240602]
[1758729804736,0.85553352,113380.0,113370.0,0.1240602]
[1758729805039,0.94368602,113380.0,113370.0,0.1240602]
[1758729806037,0.85553352,113380.0,113370.0,0.1240602]
[1758729806630,0.85552715,113380.0,113370.0,0.1240602]
[1758729806935,0.94367985,113380.0,113370.0,0.1240602]
[1758729807136,0.94367985,113380.0,113370.0,0.23496311]
[1758729807530,0.8686861,113380.0,113370.0,0.23496311]
[1758729807731,0.88923037,113380.0,113370.0,0.14680291]
[1758729807934,0.88923037,113380.0,113370.0,0.23496341]
[1758729808231,0.80107767,113380.0,113370.0,0.23496341]
[1758729808434,0.80107767,113380.0,113370.0,0.14680291]
[1758729808628,0.88923037,113380.0,113370.0,0.23496341]
[1758729809126,0.88923037,113380.0,113370.0,0.12430291]
[1758729809926,0.80107767,113380.0,113370.0,0.23496341]
[1758729810131,0.38434427,113380.0,113370.0,0.23496341]
[1758729810331,0.80107767,113380.0,113370.0,0.23496341]
[1758729812238,0.88923037,113380.0,113370.0,0.23496341]
[1758729812731,0.80107767,113380.0,113370.0,0.21246351]
[1758729813241,0.80107767,113380.0,113370.0,0.23496351]
[1758729814329,0.44027767,113380.0,113370.0,0.73989977]
[1758729814539,0.44027767,113380.0,113370.0,0.62899686]
[1758729814735,0.44027767,113380.0,113370.0,1.02899686]
[1758729815134,0.44027767,113380.0,113370.0,1.38979686]
[1758729815440,0.44027767,113380.0,113370.0,1.78894346]
[1758729815738,0.44027767,113380.0,113370.0,1.84487686]
[1758729816330,0.003,113380.0,113370.0,1.95584164]
[1758729816531,0.003,113380.0,113370.0,2.31664164]
[1758729816733,0.003,113380.0,113370.0,2.36410959]
[1758729817545,0.003,113380.0,113370.0,2.20567686]
[1758729817735,0.003,113380.0,113370.0,1.78894346]
[1758729817932,0.4197334,113380.0,113370.0,1.38894346]
[1758729818135,0.4197334,113380.0,113370.0,1.80567686]
[1758729818343,0.4197334,113380.0,113370.0,1.38894346]
[1758729818542,0.4197334,113380.0,113370.0,1.80567686]
[1758729819644,0.003,113380.0,113370.0,1.80567686]
[1758729820045,0.003,113380.0,113370.0,1.80663686]
[1758729820246,0.003,113380.0,113370.0,1.80655686]
[1758729820544,0.003,113380.0,113370.0,0.98979686]
[1758729820749,0.003,113380.0,113370.0,1.80651686]
[1758729821651,0.003,113380.0,113370.0,1.38978346]
[1758729821852,0.003,113380.0,113370.0,1.80651686]
[1758729823446,0.003,113380.0,113370.0,1.38978346]
[1758729823751,0.003,113380.0,113370.0,1.80783686]
[1758729824750,0.4197334,113380.0,113370.0,0.57306346]
[1758729825147,0.4197334,113380.0,113370.0,0.32314899]
[1758729825352,0.4197334,113380.0,113370.0,1.14122899]
[1758729825554,0.4197334,113380.0,113370.0,1.03034346]
[1758729825755,0.003,113380.0,113370.0,1.03034346]
[1758729826054,0.4197334,113380.0,113370.0,1.44707686]
[1758729826251,0.4197334,113380.0,113370.0,0.62899686]
[1758729826454,0.4197334,113380.0,113370.0,0.37069619]
[1758729826853,0.4197334,113380.0,113370.0,1.18877619]
[1758729827459,0.4197334,113380.0,113370.0,0.37069619]
[1758729827755,0.003,113380.0,113370.0,0.37069619]
[1758729827955,0.4197334,113380.0,113370.0,1.18873619]
[1758729828955,0.4197334,113380.0,113370.0,1.03030346]
[1758729831148,0.003,113380.0,113370.0,1.03030346]
[1758729831349,0.4197334,113380.0,113370.0,1.44703686]
[1758729831753,0.4197334,113380.0,113370.0,1.03030346]
[1758729831954,0.4197334,113380.0,113370.0,1.44703686]
[1758729832458,0.4197334,113380.0,113370.0,1.80783686]
[1758729832856,0.4197334,113380.0,113370.0,1.96626959]
[1758729833249,0.003,113380.0,113370.0,1.96626959]
[1758729833448,0.003,113380.0,113370.0,2.36626959]
[1758729833654,0.003,113380.0,113370.0,2.20783686]
[1758729834559,0.003,113380.0,113370.0,2.36626959]
[1758729836862,0.4197334,113380.0,113370.0,1.96566959]
[1758729837156,0.4197334,113380.0,113370.0,1.80723686]
[1758729837358,0.4197334,113380.0,113370.0,1.02950346]
[1758729837567,0.7805334,113380.0,113370.0,1.18809214]
[1758729837761,0.4197334,113380.0,113370.0,1.18837214]
[1758729838362,0.4197334,113380.0,113370.0,0.37073214]
[1758729838563,1.2686866,113380.0,113370.0,0.28252928]
[1758729838864,1.2686866,113380.0,113370.0,1.10020928]
[1758729839064,1.2686866,113380.0,113370.0,0.9417406]
[1758729839457,1.2686866,113380.0,113370.0,0.0359]
[1758729839658,1.2686866,113380.0,113370.0,0.1015609]
[1758729840065,1.2686866,113380.0,113370.0,0.0134]
[1758729840466,1.2686866,113380.0,113370.0,0.1015611]
[1758729841062,1.1805334,113380.0,113370.0,0.1015611]
[1758729841263,1.1805334,113380.0,113370.0,0.1239111]
[1758729842271,1.2686868,113380.0,113370.0,0.1239111]
[1758729843274,1.1805334,113380.0,113370.0,0.1239111]
[1758729843465,0.4197334,113380.0,113370.0,0.98964736]
[1758729843772,0.4197334,113380.0,113370.0,0.62884736]
[1758729844072,0.4197334,113380.0,113370.0,0.37058264]
[1758729844272,0.4197334,113380.0,113370.0,0.78731604]
[1758729844768,0.003,113380.0,113370.0,0.37058264]
[1758729844968,0.8197334,113380.0,113370.0,1.18746264]
[1758729845358,1.1805334,113380.0,113370.0,1.18746264]
[1758729846074,1.2686869,113380.0,113370.0,0.28281824]
[1758729846372,1.2686869,113380.0,113370.0,0.12434956]
[1758729846560,1.2686869,113380.0,113370.0,0.0134]
[1758729846764,0.0881613,113370.0,113360.0,0.12471956]
[1758729846966,0.8656947,113370.0,113360.0,0.12471956]
[1758729847163,0.8656947,113370.0,113360.0,0.21288856]
[1758729847374,0.8656947,113370.0,113360.0,0.23406856]
[1758729847768,0.8656947,113370.0,113360.0,0.03495]
[1758729847969,2.0824547,113370.0,113360.0,0.17223868]
[1758729848172,2.0824547,113370.0,113360.0,0.28316956]
[1758729848475,2.0824547,113370.0,113360.0,0.28516956]
[1758729848869,2.0824547,113370.0,113360.0,0.12670088]
[1758729849270,2.0824547,113370.0,113360.0,0.13370088]
[1758729849670,2.0824547,113370.0,113360.0,0.11993088]
[1758729850169,2.0824547,113370.0,113360.0,0.009]
[1758729850871,2.0874547,113370.0,113360.0,0.002]
[1758729852173,0.0881692,113360.0,113350.0,0.12470088]
[1758729852376,0.8657026,113360.0,113350.0,0.12470088]
[1758729852579,0.8657026,113360.0,113350.0,0.01377]
[1758729853178,0.8647026,113360.0,113350.0,0.01377]
[1758729853683,0.088177,113350.0,113340.0,0.21251328]
[1758729853885,1.6819504,113350.0,113340.0,0.21251328]
[1758729854086,1.6809504,113350.0,113340.0,0.12433088]
[1758729854383,1.6809504,113350.0,113340.0,0.1015848]
[1758729854884,1.6809504,113350.0,113340.0,0.21251568]
[1758729855085,1.6809504,113350.0,113340.0,0.23369568]
[1758729855286,1.264217,113350.0,113340.0,0.23369568]
[1758729855482,1.6809504,113350.0,113340.0,0.1227648]
[1758729855887,1.6809504,113350.0,113340.0,0.23369568]
[1758729856087,1.5967734,113350.0,113340.0,0.23469568]
[1758729856276,0.7805334,113350.0,113340.0,0.1237648]
[1758729856482,1.5982934,113350.0,113340.0,0.1237648]
[1758729856684,1.6032934,113350.0,113340.0,0.1237648]
[1758729857479,0.7855334,113350.0,113340.0,0.23469568]
[1758729857686,1.6032934,113350.0,113340.0,0.23469568]
[1758729857888,0.7855334,113350.0,113340.0,0.1237648]
[1758729858988,0.3688,113350.0,113340.0,0.5404982]
[1758729859183,0.7855334,113350.0,113340.0,1.02872441]
[1758729859381,0.7855334,113350.0,113340.0,0.61199101]
[1758729859580,0.4247334,113350.0,113340.0,1.02872441]
[1758729860588,0.4248099,113350.0,113340.0,1.02880091]
[1758729861184,0.4248099,113350.0,113340.0,1.38960091]
[1758729861384,0.008,113350.0,113340.0,1.38960091]
[1758729861586,0.008,113350.0,113340.0,1.50048888]
[1758729863387,0.008,113350.0,113340.0,1.50084189]
[1758729863579,0.003,113350.0,113340.0,1.50184189]
[1758729863783,0.77756699,113360.0,113350.0,0.1236874]
[1758729863979,0.77756699,113370.0,113360.0,0.0881696]
[1758729864183,0.86572879,113370.0,113360.0,0.1236796]
[1758729864396,0.86572879,113370.0,113360.0,0.21189802]
[1758729864692,0.77756699,113370.0,113360.0,0.21189802]
[1758729866589,0.78756699,113370.0,113360.0,0.21189802]
[1758729866789,0.87572879,113370.0,113360.0,0.21189802]
[1758729866989,0.78756699,113370.0,113360.0,0.21189802]
[1758729867286,0.79256699,113370.0,113360.0,0.21289802]
[1758729868292,0.88072879,113370.0,113360.0,0.21289802]
[1758729868794,0.79256699,113370.0,113360.0,0.21289802]
[1758729869195,0.3758,113370.0,113360.0,0.21289802]
[1758729869492,0.79256699,113370.0,113360.0,0.21289802]
[1758729870080,0.3758,113370.0,113360.0,0.21289802]
[1758729870290,0.79256699,113370.0,113360.0,0.21289802]
[1758729871390,0.88072879,113370.0,113360.0,0.21289802]
[1758729871696,0.79256699,113370.0,113360.0,0.21289802]
[1758729872096,0.88072879,113370.0,113360.0,0.1020296]
[1758729872797,0.88072879,113370.0,113360.0,0.1246796]
[1758729873785,0.79256699,113370.0,113360.0,0.1246796]
[1758729874197,0.88072909,113370.0,113360.0,0.1246796]
[1758729874594,1.16994018,113370.0,113360.0,0.1246796]
[1758729876100,1.08177808,113370.0,113360.0,0.1246796]
[1758729876499,0.3758,113370.0,113360.0,0.23561048]
[1758729876799,1.54498904,113370.0,113360.0,0.23561048]
[1758729877698,1.54498904,113370.0,113360.0,0.1246796]
[1758729878696,0.015,113370.0,113360.0,1.79309405]
[1758729879402,0.015,113370.0,113360.0,1.04010501]
[1758729879893,0.015,113370.0,113360.0,1.40090501]
[1758729880099,0.01,113370.0,113360.0,1.39990501]
[1758729880301,0.013,113370.0,113360.0,1.40090501]
[1758729880701,0.013,113370.0,113360.0,2.15389405]
[1758729881200,0.008,113370.0,113360.0,2.15389405]
[1758729881790,0.008,113370.0,113360.0,1.75389405]
[1758729882189,0.008,113370.0,113360.0,2.26473851]
[1758729882607,0.005,113370.0,113360.0,2.15389405]
[1758729882798,0.71378904,113400.0,113390.0,0.1236565]
[1758729883398,0.3608,113400.0,113390.0,0.1236565]
[1758729883790,0.3608,113400.0,113390.0,0.2118438]
[1758729884301,0.3688,113400.0,113390.0,0.2128438]
[1758729884504,0.72178904,113400.0,113390.0,0.2128438]
[1758729885191,0.36098904,113400.0,113390.0,0.2128438]
[1758729885501,0.73378904,113400.0,113390.0,0.2128438]
[1758729885900,0.72178904,113400.0,113390.0,1.0289238]
[1758729886094,0.72178904,113400.0,113390.0,0.2158438]
[1758729886600,0.72178904,113400.0,113390.0,0.28464806]
[1758729886802,0.71678904,113400.0,113390.0,0.28464806]
[1758729887196,0.71678904,113400.0,113390.0,0.19646076]
[1758729887398,1.55791688,113400.0,113390.0,0.1276565]
[1758729887702,1.55791688,113400.0,113390.0,0.1050065]
[1758729888095,1.55791688,113400.0,113390.0,0.01686]
[1758729888402,1.55791688,113400.0,113390.0,0.1050065]
[1758729888603,1.46977808,113400.0,113390.0,0.1050065]
[1758729888902,1.55791678,113400.0,113390.0,0.1050065]
[1758729890601,1.55791678,113400.0,113390.0,0.01686]
[1758729891004,1.55791678,113400.0,113390.0,0.1050058]
[1758729891203,1.55791678,113400.0,113390.0,0.004]
[1758729892407,1.55791678,113400.0,113390.0,0.00358742]
[1758729900603,1.15791678,113400.0,113390.0,0.01662742]
[1758729900810,1.97387678,113400.0,113390.0,0.01662742]
[1758729901108,1.97387678,113400.0,113390.0,0.00358742]
[1758729901307,1.15791678,113400.0,113390.0,0.10477392]
[1758729901508,1.97387678,113400.0,113390.0,0.10477392]
[1758729902109,1.15791678,113400.0,113390.0,0.10477392]
[1758729902305,1.15791678,113400.0,113390.0,0.12695392]
[1758729902306,1.97383678,113400.0,113390.0,0.12695392]
[1758729902903,1.97383678,113400.0,113390.0,0.10477392]
[1758729903106,1.97383678,113400.0,113390.0,0.00358742]
[1758729903408,2.37383678,113400.0,113390.0,0.00358742]
[1758729908111,2.37383678,113400.0,113390.0,0.01662742]
[1758729908312,1.97383678,113400.0,113390.0,0.01662742]
[1758729908818,1.97383678,113400.0,113390.0,0.00358742]
[1758729909016,1.97383678,113400.0,113390.0,0.01662742]
[1758729910016,1.97383678,113400.0,113390.0,0.00358742]
[1758729910219,1.97383678,113400.0,113390.0,0.10477392]
[1758729910607,1.97383678,113400.0,113390.0,0.01662742]
[1758729911414,1.97383678,113400.0,113390.0,0.12695392]
[1758729911812,1.97383678,113400.0,113390.0,0.10477392]
[1758729912118,1.97383678,113400.0,113390.0,0.01662742]
[1758729912422,1.97383678,113400.0,113390.0,0.00358742]
[1758729914109,1.97383678,113400.0,113390.0,0.09173402]
[1758729914309,1.97383678,113400.0,113390.0,0.10477402]
[1758729915915,0.71678904,113400.0,113390.0,0.52695402]
[1758729916215,1.53258904,113400.0,113390.0,0.52695402]
[1758729916613,1.1796,113400.0,113390.0,0.52695402]
[1758729916814,1.53258904,113400.0,113390.0,0.52695402]
[1758729918418,1.53258904,113400.0,113390.0,0.59783134]
[1758729918622,1.53258904,113400.0,113390.0,0.70867193]
[1758729920029,1.53258904,113400.0,113390.0,0.63779461]
[1758729920423,1.1796,113400.0,113390.0,0.63779461]
[1758729920624,0.3638,113400.0,113390.0,1.07897095]
[1758729920820,0.71678904,113400.0,113390.0,0.72598191]
[1758729921817,0.3638,113400.0,113390.0,0.72598191]
[1758729922419,0.3638,113400.0,113390.0,1.07897095]
[1758729922726,0.71647772,113400.0,113390.0,1.07865963]
[1758729923317,0.71647772,113400.0,113390.0,0.72598191]
[1758729923526,1.06915544,113400.0,113390.0,0.79801572]
[1758729924729,1.06915544,113400.0,113390.0,0.68717513]
[1758729926830,1.15729464,113400.0,113390.0,0.28717513]
[1758729927031,1.06915544,113400.0,113390.0,0.28717513]
[1758729927230,1.06915544,113400.0,113390.0,0.39787616]
[1758729927633,1.06915544,113400.0,113390.0,0.28717513]
[1758729927831,0.3638,113400.0,113390.0,0.28717513]
[1758729928031,1.06915544,113400.0,113390.0,0.28717513]
[1758729931231,1.06915544,113400.0,113390.0,0.39785037]
[1758729931432,1.15729454,113400.0,113390.0,0.28748337]
[1758729931638,1.15729454,113400.0,113390.0,0.19786813]
[1758729932534,1.15729454,113400.0,113390.0,0.30854337]
[1758729932933,1.15729454,113400.0,113390.0,0.19786813]
[1758729933133,1.15729454,113400.0,113390.0,0.17680813]
[1758729933332,1.15729454,113400.0,113390.0,0.19786813]
[1758729935542,1.15729454,113400.0,113390.0,0.30854337]
[1758729935743,1.90997226,113400.0,113390.0,0.01662742]
[1758729936128,1.90997226,113400.0,113390.0,0.10477432]
[1758729936334,1.90997226,113400.0,113390.0,0.01662742]
[1758729936629,1.90997226,113400.0,113390.0,0.00358742]
[1758729938935,1.99811406,113400.0,113370.0,0.12353524]
[1758729939136,1.86778786,113380.0,113370.0,0.21169764]
[1758729939541,1.86778786,113380.0,113370.0,0.12353524]
[1758729939749,0.0881624,113370.0,113360.0,0.28200392]
[1758729939940,1.96959784,113370.0,113360.0,0.26914392]
[1758729940251,0.0881702,113360.0,113350.0,0.26007288]
[1758729940438,1.15332564,113360.0,113350.0,0.26007288]
[1758729940938,1.15332564,113360.0,113350.0,0.1016042]
[1758729941538,1.14532564,113360.0,113350.0,0.1016042]
[1758729941744,1.14532564,113360.0,113350.0,0.26007288]
[1758729942041,1.14432564,113360.0,113350.0,0.26007288]
[1758729942647,1.14432564,113360.0,113350.0,0.3718644]
[1758729943240,1.14432564,113360.0,113350.0,0.21339572]
[1758729943445,0.4389702,113360.0,113350.0,0.1026042]
[1758729943645,1.14432564,113360.0,113350.0,0.1236642]
[1758729943847,1.14632564,113360.0,113350.0,0.1236642]
[1758729944152,1.14632564,113360.0,113350.0,0.01443]
[1758729944352,1.49900336,113360.0,113350.0,0.001]
[1758729944750,1.89900336,113360.0,113350.0,0.001]
[1758729946353,0.088186,113340.0,113330.0,0.01343]
[1758729946561,2.68313916,113340.0,113330.0,0.01343]
[1758729946753,0.0881937,113330.0,113320.0,0.1016259]
[1758729946947,1.15434914,113330.0,113320.0,0.1016259]
[1758729947556,1.15234914,113330.0,113320.0,0.1226859]
[1758729948458,1.06615544,113330.0,113320.0,0.1226859]
[1758729948659,0.71447772,113330.0,113320.0,0.1226859]
[1758729948860,0.70747772,113330.0,113320.0,0.1226859]
[1758729949749,0.71247772,113330.0,113320.0,0.1226859]
[1758729950350,0.80067152,113330.0,113320.0,0.1226859]
[1758729950761,0.79967152,113330.0,113320.0,0.1226859]
[1758729950955,0.80267152,113330.0,113320.0,0.1236859]
[1758729951559,1.55534924,113330.0,113320.0,0.01443]
[1758729951755,1.55534924,113330.0,113320.0,0.001]
[1758729952450,1.55534924,113330.0,113320.0,0.01385]
[1758729952656,1.55534924,113330.0,113320.0,0.1020515]
[1758729954358,0.80267142,113330.0,113320.0,0.1232415]
[1758729954559,1.2653537,113330.0,113320.0,0.1232415]
[1758729954763,1.61803142,113330.0,113320.0,0.1232415]
[1758729955260,1.17716,113330.0,113320.0,0.1232415]
[1758729955458,1.61803142,113330.0,113320.0,0.1232415]
[1758729956466,1.97070914,113330.0,113320.0,0.001]
[1758729956660,1.2653537,113330.0,113320.0,0.01385]
[1758729956867,1.97070914,113330.0,113320.0,0.1020515]
[1758729957165,1.61803142,113330.0,113320.0,0.1232415]
[1758729957664,1.97070914,113330.0,113320.0,0.1232415]
[1758729958064,1.61803142,113330.0,113320.0,0.1232415]
[1758729959257,0.71447772,113330.0,113320.0,0.1232415]
[1758729959665,0.80267142,113330.0,113320.0,0.1232415]
[1758729960165,0.3618,113330.0,113320.0,0.87591922]
[1758729960365,0.71447772,113330.0,113320.0,0.964161]
[1758729960565,0.3618,113330.0,113320.0,0.61148328]
[1758729961566,0.3618,113330.0,113320.0,1.16324709]
[1758729961866,0.3688,113330.0,113320.0,1.16324709]
[1758729962066,0.3688,113330.0,113320.0,0.61148328]
[1758729962466,0.3688,113330.0,113320.0,1.42680328]
[1758729962667,0.3688,113330.0,113320.0,0.61148328]
[1758729964374,0.008,113330.0,113320.0,0.61148328]
[1758729964565,0.008,113330.0,113320.0,1.16324709]
[1758729965069,0.008,113330.0,113320.0,1.52404709]
[1758729966768,0.008,113330.0,113320.0,0.61148328]
[1758729967074,0.008,113330.0,113320.0,1.42668328]
[1758729970567,0.008,113330.0,113320.0,1.42664328]
[1758729973168,0.008,113330.0,113320.0,1.97840709]
[1758729974073,0.008,113330.0,113320.0,2.33920709]
[1758729974373,1e-07,113330.0,113320.0,2.33920709]
[1758729975369,0.3608,113350.0,113340.0,0.1233461]
[1758729975574,0.3608,113350.0,113340.0,0.9383861]
[1758729975974,0.3608,113350.0,113340.0,1.02662788]
[1758729976167,0.3608,113350.0,113340.0,1.09883439]
[1758729976979,0.3608,113350.0,113340.0,1.09879439]
[1758729977278,0.3778,113350.0,113340.0,1.09879439]
[1758729977977,0.3778,113350.0,113340.0,0.28379439]
[1758729978170,0.3778,113350.0,113340.0,1.09875439]
[1758729978571,0.3828,113350.0,113340.0,1.09975439]
[1758729979273,0.3778,113350.0,113340.0,1.09875439]
[1758729979578,0.3758,113350.0,113340.0,1.09975439]
[1758729980473,0.015,113350.0,113340.0,1.09975439]
[1758729981878,0.015,113350.0,113340.0,1.6515182]
[1758729982080,8e-08,113350.0,113340.0,2.4123182]
[1758729982281,0.38152745,113370.0,113360.0,0.1237905]
[1758729982576,0.38152745,113370.0,113360.0,0.9386305]
[1758729982776,0.38152745,113370.0,113360.0,1.02685671]
[1758729983283,0.3608,113370.0,113360.0,1.02685671]
[1758729983482,0.3678,113370.0,113360.0,1.02785671]
[1758729983684,0.3908,113370.0,113360.0,1.02785671]
[1758729984391,0.3678,113370.0,113360.0,1.02785671]
[1758729984591,0.3848,113370.0,113360.0,1.02785671]
[1758729985286,0.3848,113370.0,113360.0,0.21301671]
[1758729985481,0.3778,113370.0,113360.0,1.02673671]
[1758729985682,0.3828,113370.0,113360.0,1.02773671]
[1758729986391,0.3778,113370.0,113360.0,1.02673671]
[1758729986685,0.3808,113370.0,113360.0,1.02673671]
[1758729987080,0.3658,113370.0,113360.0,1.02673671]
[1758729990791,0.3658,113370.0,113360.0,1.37963039]
[1758729991489,0.3658,113370.0,113360.0,1.37947039]
[1758729992184,0.71869368,113370.0,113360.0,1.02657671]
[1758729992587,0.80685638,113370.0,113360.0,0.21201671]
[1758729992793,1.55975006,113370.0,113360.0,0.03562]
[1758729992992,1.55975006,113370.0,113360.0,0.1237905]
[1758729993588,2.39508079,113370.0,113360.0,0.01386]
[1758729993895,2.39508079,113370.0,113350.0,0.1020381]
[1758729993896,0.0881705,113360.0,113350.0,0.1020381]
[1758729994193,0.80186418,113360.0,113350.0,0.03562]
[1758729994394,1.20186418,113360.0,113350.0,0.01386]
[1758729995188,1.20186418,113360.0,113350.0,0.1020383]
[1758729995691,1.20386418,113360.0,113350.0,0.1020383]
[1758729997298,1.20386418,113360.0,113350.0,0.01386]
[1758729997986,0.0881783,113350.0,113340.0,0.1011324]
[1758729998295,1.61627198,113350.0,113340.0,0.1228924]
[1758729999395,1.52809368,113350.0,113340.0,0.1228924]
[1758729999793,1.61627198,113350.0,113340.0,0.1228924]
[1758730000096,2.01627198,113350.0,113340.0,0.1011361]
[1758730000495,1.61627198,113350.0,113340.0,0.1011361]
[1758730000997,2.03654188,113350.0,113340.0,0.01295]
[1758730001387,1.6836482,113350.0,113340.0,0.1011361]
[1758730001594,2.03654188,113350.0,113340.0,0.1228961]
[1758730001894,1.63654188,113350.0,113340.0,0.1228961]
[1758730005697,1.63654188,113350.0,113340.0,0.1011361]
[1758730012701,1.63654188,113350.0,113340.0,0.01295]
[1758730013102,1.63654188,113350.0,113340.0,0.101136]
[1758730015123,1.64676871,113350.0,113340.0,0.101136]
[1758730016314,0.088186,113340.0,113330.0,0.12374152]
[1758730016510,1.15477336,113340.0,113330.0,0.21193532]
[1758730016915,1.15477336,113340.0,113330.0,0.1011438]
[1758730017123,1.15477336,113340.0,113330.0,0.1230738]
[1758730017619,0.71369368,113340.0,113330.0,0.1250738]
[1758730018122,1.52805368,113340.0,113330.0,0.23586532]
[1758730018423,1.17516,113340.0,113330.0,0.23586532]
[1758730018615,1.52805368,113340.0,113330.0,0.23586532]
[1758730019022,1.52805368,113340.0,113330.0,0.1250738]
[1758730021032,1.17516,113340.0,113330.0,0.1250738]
[1758730021418,1.17516,113340.0,113330.0,0.23586532]
[1758730021614,0.3608,113340.0,113330.0,0.63586532]
[1758730021819,0.3608,113340.0,113330.0,0.96620147]
[1758730022830,0.3608,113350.0,113340.0,0.123536]
[1758730023029,0.3608,113360.0,113350.0,0.1018282]
[1758730023224,0.3608,113360.0,113350.0,0.58735824]
[1758730023624,0.3608,113360.0,113350.0,1.07559223]
[1758730024028,0.3628,113370.0,113360.0,0.0881705]
[1758730024324,0.3628,113370.0,113360.0,0.47641418]
[1758730024516,0.3628,113370.0,113360.0,0.9646326]
[1758730025029,0.3628,113370.0,113360.0,0.61173892]
[1758730025324,0.3628,113370.0,113360.0,1.03348312]
[1758730026833,0.3628,113370.0,113360.0,1.95869948]
[1758730027626,0.002,113370.0,113360.0,1.84776312]
[1758730028027,0.005,113370.0,113360.0,1.84776312]
[1758730029730,0.005,113370.0,113360.0,1.84768312]
[1758730031637,0.3658,113370.0,113360.0,1.84768312]
[1758730032033,0.3658,113370.0,113360.0,1.49478944]
[1758730034144,0.3658,113370.0,113360.0,0.68058944]
[1758730034342,0.3658,113370.0,113360.0,1.49466944]
[1758730034844,0.3658,113370.0,113360.0,1.84756312]
[1758730035045,0.3658,113370.0,113360.0,1.49466944]
[1758730035241,0.3658,113370.0,113360.0,1.84756312]
[1758730035441,0.3658,113370.0,113360.0,1.49466944]
[1758730035644,0.3658,113370.0,113360.0,1.09462944]
[1758730035841,0.3658,113370.0,113360.0,0.28058944]
[1758730035842,0.71869368,113370.0,113360.0,0.28058944]
[1758730036036,0.80685638,113370.0,113360.0,1.09462944]
[1758730036343,0.80685638,113370.0,113360.0,0.19237102]
[1758730036744,0.71869368,113370.0,113360.0,0.19237102]
[1758730037345,0.80685638,113370.0,113360.0,0.19237102]
[1758730037947,0.4539627,113370.0,113360.0,0.19237102]
[1758730038142,1.20685638,113370.0,113360.0,0.19237102]
[1758730039041,2.02085638,113370.0,113360.0,0.19237102]
[1758730040152,2.37375006,113370.0,113360.0,0.08250052]
[1758730040350,2.02085638,113370.0,113360.0,0.08250052]
[1758730040546,2.02085638,113370.0,113360.0,0.17067102]
[1758730041043,2.02085638,113370.0,113360.0,0.19209102]
[1758730041850,2.37375006,113370.0,113360.0,0.17067102]
[1758730042045,0.0881704,113360.0,113350.0,0.1018227]
[1758730042349,0.80186408,113360.0,113350.0,0.1018227]
[1758730042550,0.80186408,113360.0,113350.0,0.1232427]
[1758730042848,0.71369368,113360.0,113350.0,0.1232427]
[1758730043239,0.80386408,113360.0,113350.0,0.1232427]
[1758730044047,0.71569368,113360.0,113350.0,0.1232427]
[1758730044640,1.15698736,113360.0,113350.0,0.1232427]
[1758730045442,1.06881696,113360.0,113350.0,0.1232427]
[1758730048253,1.15698736,113360.0,113350.0,0.1232427]
[1758730048446,1.15698736,113360.0,113350.0,0.1282427]
[1758730049747,1.15698736,113360.0,113350.0,0.1068227]
[1758730049952,1.90999584,113360.0,113350.0,0.01865]
[1758730050156,1.90999584,113360.0,113350.0,0.005]
[1758730050856,0.088186,113340.0,113330.0,0.10114]
[1758730051046,2.32968296,113340.0,113330.0,0.10114]
[1758730052249,2.32968296,113340.0,113330.0,0.11714]
[1758730052455,2.33962611,113340.0,113330.0,0.11714]
[1758730052654,2.33962611,113340.0,113330.0,0.22807636]
[1758730053358,2.33962611,113340.0,113330.0,0.14188636]
[1758730053650,3.09263459,113340.0,113330.0,0.12893636]
[1758730053851,3.09263459,113340.0,113330.0,0.018]
[1758730054850,3.09263459,113340.0,113330.0,0.1191138]
[1758730057352,1.21972915,113340.0,113330.0,0.1191138]
[1758730057561,2.73966611,113340.0,113330.0,0.1405338]
[1758730059255,1.59530025,113340.0,113330.0,0.1405338]
[1758730059549,2.3992771,113340.0,113330.0,0.1405338]
[1758730059756,2.32972296,113340.0,113330.0,0.1405338]
[1758730060758,1.97671448,113340.0,113330.0,0.1405338]
[1758730061060,2.24153696,113340.0,113330.0,0.1405338]
[1758730061359,2.32972296,113340.0,113330.0,0.1405338]
[1758730062260,2.32968296,113340.0,113330.0,0.1405338]
[1758730063749,2.32968296,113340.0,113330.0,0.1031138]
[1758730063956,2.32968296,113340.0,113330.0,0.1041138]
[1758730064257,3.08269144,113340.0,113330.0,0.01592]
[1758730065061,2.72968296,113340.0,113330.0,0.01592]
[1758730065856,3.08269144,113340.0,113330.0,0.01592]
[1758730066056,3.08269144,113340.0,113330.0,0.01492]
[1758730066257,3.08769144,113340.0,113330.0,0.01492]
[1758730066464,2.73468296,113340.0,113330.0,0.01492]
[1758730066767,2.80599367,113340.0,113330.0,0.01492]
[1758730067158,2.80599367,113340.0,113330.0,0.01292]
[1758730067358,2.80899367,113340.0,113330.0,0.01292]
[1758730067558,2.10297671,113340.0,113330.0,0.01292]
[1758730067760,2.80899367,113340.0,113330.0,0.1225338]
[1758730068664,2.73768296,113340.0,113330.0,0.1225338]
[1758730068866,0.817786,113340.0,113330.0,0.1225338]
[1758730069067,2.33760296,113340.0,113330.0,0.1225338]
[1758730070069,1.631586,113340.0,113330.0,0.1225338]
[1758730070463,0.7296,113340.0,113330.0,0.47554228]
[1758730070769,1.89640848,113340.0,113330.0,0.47554228]
[1758730071366,1.5434,113340.0,113330.0,0.47554228]
[1758730071562,0.7296,113340.0,113330.0,0.47554228]
[1758730071763,0.7296,113340.0,113330.0,0.87554228]
[1758730071970,1.08260848,113340.0,113330.0,0.87554228]
[1758730072165,0.7296,113340.0,113330.0,0.87554228]
[1758730072367,0.7296,113340.0,113330.0,0.96377627]
[1758730072572,0.3688,113340.0,113330.0,0.96377627]
[1758730073070,0.72180848,113340.0,113330.0,0.96377627]
[1758730073273,0.72180848,113340.0,113330.0,0.61076779]
[1758730073571,1.16300296,113340.0,113330.0,0.1225338]
[1758730073762,1.52380296,113340.0,113330.0,0.1225338]
[1758730074272,0.817786,113340.0,113330.0,0.1225338]
[1758730074465,1.52380296,113340.0,113330.0,0.1225338]
[1758730074666,1.43561696,113340.0,113330.0,0.1225338]
[1758730075072,1.52380296,113340.0,113330.0,0.1225338]
[1758730076971,0.817786,113340.0,113330.0,0.1225338]
[1758730077159,0.7296,113340.0,113330.0,0.1225338]
[1758730077364,0.72180848,113340.0,113330.0,0.1225338]
[1758730077764,0.72180848,113340.0,113330.0,0.47554228]
[1758730078964,0.3688,113340.0,113330.0,0.47554228]